Workbook

Sheet апрель
A6: № п/п | B6: Сведения об операции
B7: Дата совершения операции | C7: Сумма списания со счета, ед. валюты счета | D7: Направ ление (1-Зач исле- ние, 2-спи- сание) | E7: Код вида валют- ной опера- ции | F7: Номер паспорта сделки | G7: Код валю- ты цены конт- ракта
A8: 1 | B8: 30.03.2012-02.04.2012 | C8: 7000 | D8: 1 | E8: 20020 | G8: 840
A9: 2 | B9: 2012-04-02 | C9: 640.5 | D9: 1 | E9: 01030 | G9: 840
A10: 3 | B10: 2012-04-02 | C10: 640.5 | D10: 2 | E10: 11050 | G10: 840
A11: 4 | B11: 2012-04-02 | C11: 75500 | D11: 1 | E11: 01030 | G11: 840
A12: 5 | B12: 2012-04-02 | C12: 2412.48 | D12: 1 | E12: 01030 | G12: 840
A13: 6 | B13: 2012-04-02 | C13: 75500 | D13: 2 | E13: 11020 | G13: 840
A14: 7 | B14: 2012-04-02 | C14: 2412.48 | D14: 2 | E14: 11030 | G14: 840
A15: 8 | B15: 2012-04-02 | C15: 4184 | D15: 1 | E15: 20020 | G15: 978
A16: 9 | B16: 2012-04-02 | C16: 40210 | D16: 1 | E16: 20050 | G16: 840
A17: 10 | B17: 2012-04-02 | C17: 5000 | D17: 1 | E17: 20020 | G17: 840
A18: 11 | B18: 2012-04-02 | C18: 15000 | D18: 1 | E18: 20050 | G18: 840
A19: 12 | B19: 2012-04-02 | C19: 23704 | D19: 1 | E19: 01030 | G19: 840
A20: 13 | B20: 2012-04-02 | C20: 23704 | D20: 2 | E20: 11030 | G20: 840
A21: 14 | B21: 2012-04-02 | C21: 5000 | D21: 2 | E21: 01010 | G21: 840
A22: 15 | B22: 2012-04-03 | C22: 1156 | D22: 1 | E22: 20050 | G22: 840
A23: 16 | B23: 2012-04-03 | C23: 4184 | D23: 2 | E23: 01010 | G23: 978
A24: 17 | B24: 2012-04-03 | C24: 5000 | D24: 2 | E24: 01010 | G24: 840
A25: 18 | B25: 2012-04-03 | C25: 5000 | D25: 1 | E25: 20020 | G25: 840
A26: 19 | B26: 2012-04-03 | C26: 6500 | D26: 2 | E26: 01010 | G26: 840
A27: 20 | B27: 2012-04-03 | C27: 41904 | D27: 1 | E27: 20020 | G27: 978
A28: 21 | B28: 2012-04-03 | C28: 14803 | D28: 1 | E28: 20020 | G28: 978
A29: 22 | B29: 2012-04-03 | C29: 14975 | D29: 2 | E29: 01010 | G29: 840
A30: 23 | B30: 2012-04-03 | C30: 15000 | D30: 2 | E30: 01010 | G30: 840
A31: 24 | B31: 2012-04-03 | C31: 29185 | D31: 1 | E31: 35020 | G31: 840
A32: 25 | B32: 2012-04-03 | C32: 5010 | D32: 1 | E32: 20020 | G32: 840
A33: 26 | B33: 2012-04-03 | C33: 40210 | D33: 2 | E33: 01010 | G33: 840
A34: 27 | B34: 2012-04-03 | C34: 7000 | D34: 2 | E34: 01010 | G34: 840
A35: 28 | B35: 2012-04-04 | C35: 175 | D35: 2 | E35: 61100 | G35: 840
A36: 29 | B36: 2012-04-04 | C36: 310000 | D36: 2 | E36: 01010 | G36: 840
A37: 30 | B37: 2012-04-04 | C37: 2750 | D37: 1 | E37: 20020 | G37: 840
A38: 31 | B38: 2012-04-04 | C38: 5000 | D38: 2 | E38: 01010 | G38: 840
A39: 32 | B39: 2012-04-04 | C39: 5000 | D39: 1 | E39: 20050 | G39: 840
A40: 33 | B40: 2012-04-04 | C40: 7425 | D40: 1 | E40: 35020 | G40: 840
A41: 34 | B41: 2012-04-04 | C41: 1350 | D41: 1 | E41: 20020 | G41: 840
A42: 35 | B42: 2012-04-04 | C42: 10000 | D42: 2 | E42: 11010 | G42: 840
A43: 36 | B43: 2012-04-04 | C43: 17150 | D43: 2 | E43: 35020 | G43: 978
A44: 37 | B44: 2012-04-04 | C44: 21960 | D44: 1 | E44: 61100 | G44: 840
A45: 38 | B45: 2012-04-04 | C45: 21960 | D45: 2 | E45: 61100 | G45: 840
A46: 39 | B46: 2012-04-04 | C46: 27769.4 | D46: 2 | E46: 35020 | G46: 978
A47: 40 | B47: 2012-04-04 | C47: 40000 | D47: 2 | E47: 11010 | G47: 840
A48: 41 | B48: 2012-04-04 | C48: 44919.4 | D48: 1 | E48: 01030 | G48: 978
A49: 42 | B49: 2012-04-04 | C49: 50000 | D49: 1 | E49: 01030 | G49: 840
A50: 43 | B50: 2012-04-04 | C50: 175 | D50: 1 | E50: 61100 | G50: 840
A51: 44 | B51: 2012-04-05 | C51: 250 | D51: 2 | E51: 61100 | G51: 840
A52: 45 | B52: 2012-04-05 | C52: 25395 | D52: 2 | E52: 01010 | G52: 826
A53: 46 | B53: 2012-04-05 | C53: 342.5 | D53: 2 | E53: 61100 | G53: 840
A54: 47 | B54: 2012-04-05 | C54: 342.5 | D54: 1 | E54: 61100 | G54: 840
A55: 48 | B55: 2012-04-05 | C55: 444.85 | D55: 1 | E55: 20050 | G55: 840
A56: 49 | B56: 2012-04-05 | C56: 1500 | D56: 2 | E56: 61100 | G56: 840
A57: 50 | B57: 2012-04-05 | C57: 1500 | D57: 1 | E57: 61100 | G57: 840
A58: 51 | B58: 2012-04-05 | C58: 2750 | D58: 2 | E58: 01010 | G58: 840
A59: 52 | B59: 2012-04-05 | C59: 3600 | D59: 1 | E59: 20050 | G59: 840
A60: 53 | B60: 2012-04-05 | C60: 3840 | D60: 1 | E60: 20050 | G60: 840
A61: 54 | B61: 2012-04-05 | C61: 5000 | D61: 2 | E61: 01010 | G61: 978
A62: 55 | B62: 2012-04-05 | C62: 7000 | D62: 1 | E62: 20020 | G62: 840
A63: 56 | B63: 2012-04-05 | C63: 10000 | D63: 1 | E63: 20050 | G63: 840
A64: 57 | B64: 2012-04-05 | C64: 19985 | D64: 1 | E64: 10030 | G64: 840
A65: 58 | B65: 2012-04-05 | C65: 250 | D65: 1 | E65: 61100 | G65: 840
A66: 59 | B66: 2012-04-06 | C66: 19985 | D66: 2 | E66: 01010 | G66: 840
A67: 60 | B67: 2012-04-06 | C67: 2500 | D67: 1 | E67: 01030 | G67: 978
A68: 61 | B68: 2012-04-06 | C68: 5000 | D68: 2 | E68: 01010 | G68: 840
A69: 62 | B69: 2012-04-06 | C69: 7000 | D69: 2 | E69: 01010 | G69: 840
A70: 63 | B70: 2012-04-06 | C70: 10000 | D70: 2 | E70: 01010 | G70: 840
A71: 64 | B71: 2012-04-06 | C71: 2656 | D71: 2 | E71: 11030 | G71: 840
A72: 65 | B72: 2012-04-06 | C72: 25800 | D72: 1 | E72: 01030 | G72: 840
A73: 66 | B73: 2012-04-06 | C73: 62097 | D73: 1 | E73: 01030 | G73: 840
A74: 67 | B74: 2012-04-06 | C74: 59441 | D74: 2 | E74: 11010 | G74: 840
A75: 68 | B75: 2012-04-06 | C75: 14500 | D75: 1 | E75: 20020 | G75: 840
A76: 69 | B76: 2012-04-09 | C76: 865.86 | D76: 1 | E76: 20050 | G76: 840
A77: 70 | B77: 2012-04-09 | C77: 1400 | D77: 1 | E77: 01030 | G77: 978
A78: 71 | B78: 2012-04-09 | C78: 1615 | D78: 1 | E78: 01030 | G78: 840
A79: 72 | B79: 2012-04-09 | C79: 2280 | D79: 2 | E79: 01010 | G79: 978
A80: 73 | B80: 2012-04-09 | C80: 3588.9 | D80: 2 | E80: 01010 | G80: 978
A81: 74 | B81: 2012-04-09 | C81: 47726.71 | D81: 2 | E81: 01010 | G81: 978
A82: 75 | B82: 2012-04-09 | C82: 5040 | D82: 1 | E82: 20020 | G82: 840
A83: 76 | B83: 2012-04-09 | C83: 14500 | D83: 2 | E83: 01010 | G83: 840
A84: 77 | B84: 2012-04-09 | C84: 19972 | D84: 1 | E84: 10050 | G84: 840
A85: 78 | B85: 2012-04-09 | C85: 27405 | D85: 2 | E85: 11050 | G85: 840
A86: 79 | B86: 2012-04-09 | C86: 30000 | D86: 1 | E86: 01030 | G86: 840
A87: 80 | B87: 2012-04-09 | C87: 4135 | D87: 2 | E87: 11050 | G87: 840
A88: 81 | B88: 2012-04-10 | C88: 1331.79 | D88: 2 | E88: 11020 | G88: 978
A89: 82 | B89: 2012-04-10 | C89: 14100 | D89: 1 | E89: 20020 | G89: 840
A90: 83 | B90: 2012-04-10 | C90: 2000 | D90: 1 | E90: 20020 | G90: 840
A91: 84 | B91: 2012-04-10 | C91: 2500 | D91: 2 | E91: 11020 | G91: 978
A92: 85 | B92: 2012-04-10 | C92: 43000 | D92: 1 | E92: 01030 | G92: 978
A93: 86 | B93: 2012-04-10 | C93: 19236.1 | D93: 1 | E93: 10030 | G93: 840
A94: 87 | B94: 2012-04-10 | C94: 19972 | D94: 2 | E94: 01010 | G94: 840
A95: 88 | B95: 2012-04-10 | C95: 30000 | D95: 2 | E95: 11010 | G95: 840
A96: 89 | B96: 2012-04-10 | C96: 3000 | D96: 1 | E96: 01030 | G96: 840
A97: 90 | B97: 2012-04-11 | C97: 729.28 | D97: 1 | E97: 01030 | G97: 840
A98: 91 | B98: 2012-04-11 | C98: 729.28 | D98: 2 | E98: 21010 | G98: 840
A99: 92 | B99: 2012-04-11 | C99: 2000 | D99: 2 | E99: 01010 | G99: 840
A100: 93 | B100: 2012-04-11 | C100: 2278 | D100: 1 | E100: 20050 | G100: 978
A101: 94 | B101: 2012-04-11 | C101: 2808.48 | D101: 1 | E101: 20020 | G101: 840
A102: 95 | B102: 2012-04-11 | C102: 3000 | D102: 2 | E102: 01010 | G102: 840
A103: 96 | B103: 2012-04-11 | C103: 8220 | D103: 1 | E103: 20020 | G103: 840
A104: 97 | B104: 2012-04-11 | C104: 13680 | D104: 1 | E104: 20020 | G104: 840
A105: 98 | B105: 2012-04-11 | C105: 15000 | D105: 1 | E105: 20020 | G105: 840
A106: 99 | B106: 2012-04-11 | C106: 15500 | D106: 1 | E106: 20050 | G106: 840
A107: 100 | B107: 2012-04-11 | C107: 19236.1 | D107: 2 | E107: 01010 | G107: 840
A108: 101 | B108: 2012-04-11 | C108: 28969 | D108: 2 | E108: 61100 | G108: 978
A109: 102 | B109: 2012-04-11 | C109: 28969 | D109: 1 | E109: 61100 | G109: 978
A110: 103 | B110: 2012-04-11 | C110: 30000 | D110: 1 | E110: 20050 | G110: 840
A111: 104 | B111: 2012-04-11 | C111: 167233 | D111: 1 | E111: 20050 | G111: 840
A112: 105 | B112: 2012-04-12 | C112: 545.47 | D112: 1 | E112: 20050 | G112: 840
A113: 106 | B113: 2012-04-12 | C113: 63000 | D113: 2 | E113: 01010 | G113: 840
A114: 107 | B114: 2012-04-12 | C114: 764.4 | D114: 1 | E114: 20050 | G114: 840
A115: 108 | B115: 2012-04-12 | C115: 1239.17 | D115: 1 | E115: 20050 | G115: 840
A116: 109 | B116: 2012-04-12 | C116: 1885.29 | D116: 1 | E116: 20050 | G116: 840
A117: 110 | B117: 2012-04-12 | C117: 2200 | D117: 1 | E117: 20050 | G117: 840
A118: 111 | B118: 2012-04-12 | C118: 557.26 | D118: 1 | E118: 20050 | G118: 978
A119: 112 | B119: 2012-04-12 | C119: 2733.62 | D119: 1 | E119: 20050 | G119: 840
A120: 113 | B120: 2012-04-12 | C120: 5040 | D120: 2 | E120: 01010 | G120: 840
A121: 114 | B121: 2012-04-12 | C121: 6000 | D121: 2 | E121: 01010 | G121: 840
A122: 115 | B122: 2012-04-12 | C122: 8220 | D122: 2 | E122: 01010 | G122: 840
A123: 116 | B123: 2012-04-12 | C123: 9384 | D123: 1 | E123: 01030 | G123: 840
A124: 117 | B124: 2012-04-12 | C124: 9384 | D124: 2 | E124: 11050 | G124: 840
A125: 118 | B125: 2012-04-12 | C125: 10000 | D125: 2 | E125: 01010 | G125: 978
A126: 119 | B126: 2012-04-12 | C126: 13680 | D126: 2 | E126: 01010 | G126: 840
A127: 120 | B127: 2012-04-12 | C127: 15000 | D127: 2 | E127: 01010 | G127: 840
A128: 121 | B128: 2012-04-12 | C128: 15500 | D128: 2 | E128: 01010 | G128: 840
A129: 122 | B129: 2012-04-12 | C129: 21100 | D129: 1 | E129: 01030 | G129: 978
A130: 123 | B130: 2012-04-12 | C130: 560.14 | D130: 1 | E130: 20050 | G130: 840
A131: 124 | B131: 2012-04-13 | C131: 444.85 | D131: 2 | E131: 01010 | G131: 840
A132: 125 | B132: 2012-04-13 | C132: 128136.62 | D132: 1 | E132: 20050 | G132: 840
A133: 126 | B133: 2012-04-13 | C133: 500 | D133: 2 | E133: 61100 | G133: 840
A134: 127 | B134: 2012-04-13 | C134: 500 | D134: 1 | E134: 61100 | G134: 840
A135: 128 | B135: 2012-04-13 | C135: 647.12 | D135: 2 | E135: 01010 | G135: 840
A136: 129 | B136: 2012-04-13 | C136: 801 | D136: 1 | E136: 10030 | G136: 840
A137: 130 | B137: 2012-04-13 | C137: 1156 | D137: 2 | E137: 01010 | G137: 840
A138: 131 | B138: 2012-04-13 | C138: 1739 | D138: 1 | E138: 20050 | G138: 840
A139: 132 | B139: 2012-04-13 | C139: 1825 | D139: 1 | E139: 20050 | G139: 840
A140: 133 | B140: 2012-04-13 | C140: 3500 | D140: 1 | E140: 20050 | G140: 840
A141: 134 | B141: 2012-04-13 | C141: 7728.09 | D141: 2 | E141: 01010 | G141: 840
A142: 135 | B142: 2012-04-13 | C142: 9211.17 | D142: 1 | E142: 20050 | G142: 840
A143: 136 | B143: 2012-04-13 | C143: 14803 | D143: 2 | E143: 01010 | G143: 978
A144: 137 | B144: 2012-04-13 | C144: 21129.52 | D144: 2 | E144: 11050 | G144: 978
A145: 138 | B145: 2012-04-13 | C145: 28004 | D145: 1 | E145: 20050 | G145: 840
A146: 139 | B146: 2012-04-13 | C146: 30000 | D146: 2 | E146: 01010 | G146: 840
A147: 140 | B147: 2012-04-13 | C147: 41904 | D147: 2 | E147: 01010 | G147: 978
A148: 141 | B148: 2012-04-13 | C148: 42970 | D148: 2 | E148: 61100 | G148: 840
A149: 142 | B149: 2012-04-13 | C149: 42970 | D149: 1 | E149: 61100 | G149: 840
A150: 143 | B150: 2012-04-13 | C150: 127636.62 | D150: 2 | E150: 01010 | G150: 840
A151: 144 | B151: 2012-04-13 | C151: 450 | D151: 1 | E151: 20050 | G151: 840
A152: 145 | B152: 2012-04-16 | C152: 262.13 | D152: 1 | E152: 20050 | G152: 840
A153: 146 | B153: 2012-04-16 | C153: 150000 | D153: 1 | E153: 01030 | G153: 978
A154: 147 | B154: 2012-04-16 | C154: 500 | D154: 2 | E154: 21020 | G154: 840
A155: 148 | B155: 2012-04-16 | C155: 680.47 | D155: 1 | E155: 20050 | G155: 840
A156: 149 | B156: 2012-04-16 | C156: 718.43 | D156: 1 | E156: 20050 | G156: 840
A157: 150 | B157: 2012-04-16 | C157: 798.92 | D157: 1 | E157: 20050 | G157: 840
A158: 151 | B158: 2012-04-16 | C158: 962.28 | D158: 1 | E158: 20050 | G158: 840
A159: 152 | B159: 2012-04-16 | C159: 1254.64 | D159: 1 | E159: 20050 | G159: 840
A160: 153 | B160: 2012-04-16 | C160: 1739 | D160: 2 | E160: 01010 | G160: 840
A161: 154 | B161: 2012-04-16 | C161: 1825 | D161: 2 | E161: 01010 | G161: 840
A162: 155 | B162: 2012-04-16 | C162: 1842.43 | D162: 1 | E162: 20050 | G162: 840
A163: 156 | B163: 2012-04-16 | C163: 2500 | D163: 1 | E163: 01030 | G163: 978
A164: 157 | B164: 2012-04-16 | C164: 2500 | D164: 2 | E164: 11020 | G164: 978
A165: 158 | B165: 2012-04-16 | C165: 3000 | D165: 1 | E165: 20020 | G165: 840
A166: 159 | B166: 2012-04-16 | C166: 3000 | D166: 1 | E166: 20020 | G166: 840
A167: 160 | B167: 2012-04-16 | C167: 3443.1 | D167: 2 | E167: 11050 | G167: 840
A168: 161 | B168: 2012-04-16 | C168: 3500 | D168: 2 | E168: 01010 | G168: 840
A169: 162 | B169: 2012-04-16 | C169: 7360 | D169: 1 | E169: 20020 | G169: 840
A170: 163 | B170: 2012-04-16 | C170: 8220.14 | D170: 1 | E170: 20050 | G170: 840
A171: 164 | B171: 2012-04-16 | C171: 8638.56 | D171: 1 | E171: 20050 | G171: 840
A172: 165 | B172: 2012-04-16 | C172: 13000 | D172: 2 | E172: 01010 | G172: 978
A173: 166 | B173: 2012-04-16 | C173: 20000 | D173: 1 | E173: 01030 | G173: 978
A174: 167 | B174: 2012-04-16 | C174: 25000 | D174: 1 | E174: 01030 | G174: 840
A175: 168 | B175: 2012-04-16 | C175: 25000 | D175: 2 | E175: 11050 | G175: 840
A176: 169 | B176: 2012-04-16 | C176: 34300 | D176: 1 | E176: 01030 | G176: 840
A177: 170 | B177: 2012-04-16 | C177: 34300 | D177: 2 | E177: 11050 | G177: 840
A178: 171 | B178: 2012-04-16 | C178: 39595 | D178: 1 | E178: 20050 | G178: 978
A179: 172 | B179: 2012-04-16 | C179: 100000 | D179: 2 | E179: 01010 | G179: 840
A180: 173 | B180: 2012-04-16 | C180: 266.56 | D180: 2 | E180: 01010 | G180: 840
A181: 174 | B181: 2012-04-17 | C181: 250 | D181: 1 | E181: 20050 | G181: 840
A182: 175 | B182: 2012-04-17 | C182: 50000 | D182: 1 | E182: 01030 | G182: 840
A183: 176 | B183: 2012-04-17 | C183: 1530.9 | D183: 1 | E183: 01030 | G183: 840
A184: 177 | B184: 2012-04-17 | C184: 1530.9 | D184: 2 | E184: 11050 | G184: 840
A185: 178 | B185: 2012-04-17 | C185: 2278 | D185: 2 | E185: 01010 | G185: 978
A186: 179 | B186: 2012-04-17 | C186: 2280 | D186: 1 | E186: 20020 | G186: 978
A187: 180 | B187: 2012-04-17 | C187: 2618 | D187: 1 | E187: 20020 | G187: 840
A188: 181 | B188: 2012-04-17 | C188: 3000 | D188: 2 | E188: 01010 | G188: 840
A189: 182 | B189: 2012-04-17 | C189: 5400 | D189: 1 | E189: 20020 | G189: 978
A190: 183 | B190: 2012-04-17 | C190: 7360 | D190: 2 | E190: 01010 | G190: 840
A191: 184 | B191: 2012-04-17 | C191: 7485 | D191: 2 | E191: 11050 | G191: 840
A192: 185 | B192: 2012-04-17 | C192: 8774.48 | D192: 1 | E192: 01030 | G192: 978
A193: 186 | B193: 2012-04-17 | C193: 8774.48 | D193: 2 | E193: 11050 | G193: 978
A194: 187 | B194: 2012-04-17 | C194: 9211.17 | D194: 2 | E194: 01010 | G194: 840
A195: 188 | B195: 2012-04-17 | C195: 10382.75 | D195: 1 | E195: 01030 | G195: 978
A196: 189 | B196: 2012-04-17 | C196: 10382.75 | D196: 2 | E196: 11020 | G196: 978
A197: 190 | B197: 2012-04-17 | C197: 23378 | D197: 2 | E197: 01010 | G197: 840
A198: 191 | B198: 2012-04-17 | C198: 39595 | D198: 2 | E198: 61100 | G198: 978
A199: 192 | B199: 2012-04-17 | C199: 39595 | D199: 1 | E199: 61100 | G199: 978
A200: 193 | B200: 2012-04-17 | C200: 41298 | D200: 2 | E200: 11030 | G200: 978
A201: 194 | B201: 2012-04-17 | C201: 500 | D201: 1 | E201: 20050 | G201: 840
A202: 195 | B202: 2012-04-18 | C202: 50 | D202: 1 | E202: 20050 | G202: 840
A203: 196 | B203: 2012-04-18 | C203: 30000 | D203: 2 | E203: 11010 | G203: 840
A204: 197 | B204: 2012-04-18 | C204: 225 | D204: 2 | E204: 61100 | G204: 978
A205: 198 | B205: 2012-04-18 | C205: 225 | D205: 1 | E205: 61100 | G205: 978
... 121 more rows

Sheet формулы
D1: 2 | E1: 1 | F1: 2 | G1: 1 | H1: 2 | I1: 1 | J1: 2 | K1: 1
D2: списание | E2: зачисление | F2: списание | G2: зачисление | H2: списание | I2: зачисление | J2: списание | K2: зачисление
D3: 840 | E3: 840 | F3: 978 | G3: 978 | H3: 826 | I3: 826 | J3: 756 | K3: 756
A4: 01010 | D4: =SUMPRODUCT((апрель!D$8:D$325=2)*(апрель!G$8:G$325=840)*(апрель!E$8:E$325=A4)*(апрель!C$8:C$325)) -> 1345329.93 | E4: =SUMPRODUCT((апрель!D$8:D$325=1)*(апрель!G$8:G$325=840)*(апрель!E$8:E$325=A4)*(апрель!C$8:C$325)) -> 0 | F4: =SUMPRODUCT((апрель!D$8:D$325=2)*(апрель!G$8:G$325=978)*(апрель!E$8:E$325=A4)*(апрель!C$8:C$325)) -> 215406.07 | G4: =SUMPRODUCT((апрель!D$8:D$325=1)*(апрель!G$8:G$325=978)*(апрель!E$8:E$325=A4)*(апрель!C$8:C$325)) -> 0 | H4: =SUMPRODUCT((апрель!D$8:D$325=2)*(апрель!G$8:G$325=826)*(апрель!E$8:E$325=A4)*(апрель!C$8:C$325)) -> 25395 | I4: =SUMPRODUCT((апрель!D$8:D$325=1)*(апрель!G$8:G$325=826)*(апрель!E$8:E$325=A4)*(апрель!C$8:C$325)) -> 0 | J4: =SUMPRODUCT((апрель!D$8:D$325=2)*(апрель!G$8:G$325=756)*(апрель!E$8:E$325=A4)*(апрель!C$8:C$325)) -> 0 | K4: =SUMPRODUCT((апрель!D$8:D$325=1)*(апрель!G$8:G$325=756)*(апрель!E$8:E$325=A4)*(апрель!C$8:C$325)) -> 0
A5: 01030 | D5: =SUMPRODUCT((апрель!D$8:D$325=2)*(апрель!G$8:G$325=840)*(апрель!E$8:E$325=A5)*(апрель!C$8:C$325)) -> 0 | E5: =SUMPRODUCT((апрель!D$8:D$325=1)*(апрель!G$8:G$325=840)*(апрель!E$8:E$325=A5)*(апрель!C$8:C$325)) -> 504780.33 | F5: =SUMPRODUCT((апрель!D$8:D$325=2)*(апрель!G$8:G$325=978)*(апрель!E$8:E$325=A5)*(апрель!C$8:C$325)) -> 0 | G5: =SUMPRODUCT((апрель!D$8:D$325=1)*(апрель!G$8:G$325=978)*(апрель!E$8:E$325=A5)*(апрель!C$8:C$325)) -> 383620.63 | H5: =SUMPRODUCT((апрель!D$8:D$325=2)*(апрель!G$8:G$325=826)*(апрель!E$8:E$325=A5)*(апрель!C$8:C$325)) -> 0 | I5: =SUMPRODUCT((апрель!D$8:D$325=1)*(апрель!G$8:G$325=826)*(апрель!E$8:E$325=A5)*(апрель!C$8:C$325)) -> 4155.73 | J5: =SUMPRODUCT((апрель!D$8:D$325=2)*(апрель!G$8:G$325=756)*(апрель!E$8:E$325=A5)*(апрель!C$8:C$325)) -> 0 | K5: =SUMPRODUCT((апрель!D$8:D$325=1)*(апрель!G$8:G$325=756)*(апрель!E$8:E$325=A5)*(апрель!C$8:C$325)) -> 0
A6: 01040 | D6: =SUMPRODUCT((апрель!D$8:D$325=2)*(апрель!G$8:G$325=840)*(апрель!E$8:E$325=A6)*(апрель!C$8:C$325)) -> 0 | E6: =SUMPRODUCT((апрель!D$8:D$325=1)*(апрель!G$8:G$325=840)*(апрель!E$8:E$325=A6)*(апрель!C$8:C$325)) -> 0 | F6: =SUMPRODUCT((апрель!D$8:D$325=2)*(апрель!G$8:G$325=978)*(апрель!E$8:E$325=A6)*(апрель!C$8:C$325)) -> 0 | G6: =SUMPRODUCT((апрель!D$8:D$325=1)*(апрель!G$8:G$325=978)*(апрель!E$8:E$325=A6)*(апрель!C$8:C$325)) -> 0 | H6: =SUMPRODUCT((апрель!D$8:D$325=2)*(апрель!G$8:G$325=826)*(апрель!E$8:E$325=A6)*(апрель!C$8:C$325)) -> 0 | I6: =SUMPRODUCT((апрель!D$8:D$325=1)*(апрель!G$8:G$325=826)*(апрель!E$8:E$325=A6)*(апрель!C$8:C$325)) -> 0 | J6: =SUMPRODUCT((апрель!D$8:D$325=2)*(апрель!G$8:G$325=756)*(апрель!E$8:E$325=A6)*(апрель!C$8:C$325)) -> 0 | K6: =SUMPRODUCT((апрель!D$8:D$325=1)*(апрель!G$8:G$325=756)*(апрель!E$8:E$325=A6)*(апрель!C$8:C$325)) -> 0
A7: 10010 | D7: =SUMPRODUCT((апрель!D$8:D$325=2)*(апрель!G$8:G$325=840)*(апрель!E$8:E$325=A7)*(апрель!C$8:C$325)) -> 0 | E7: =SUMPRODUCT((апрель!D$8:D$325=1)*(апрель!G$8:G$325=840)*(апрель!E$8:E$325=A7)*(апрель!C$8:C$325)) -> 0 | F7: =SUMPRODUCT((апрель!D$8:D$325=2)*(апрель!G$8:G$325=978)*(апрель!E$8:E$325=A7)*(апрель!C$8:C$325)) -> 0 | G7: =SUMPRODUCT((апрель!D$8:D$325=1)*(апрель!G$8:G$325=978)*(апрель!E$8:E$325=A7)*(апрель!C$8:C$325)) -> 0 | H7: =SUMPRODUCT((апрель!D$8:D$325=2)*(апрель!G$8:G$325=826)*(апрель!E$8:E$325=A7)*(апрель!C$8:C$325)) -> 0 | I7: =SUMPRODUCT((апрель!D$8:D$325=1)*(апрель!G$8:G$325=826)*(апрель!E$8:E$325=A7)*(апрель!C$8:C$325)) -> 0 | J7: =SUMPRODUCT((апрель!D$8:D$325=2)*(апрель!G$8:G$325=756)*(апрель!E$8:E$325=A7)*(апрель!C$8:C$325)) -> 0 | K7: =SUMPRODUCT((апрель!D$8:D$325=1)*(апрель!G$8:G$325=756)*(апрель!E$8:E$325=A7)*(апрель!C$8:C$325)) -> 0
A8: 10030 | D8: =SUMPRODUCT((апрель!D$8:D$325=2)*(апрель!G$8:G$325=840)*(апрель!E$8:E$325=A8)*(апрель!C$8:C$325)) -> 0 | E8: =SUMPRODUCT((апрель!D$8:D$325=1)*(апрель!G$8:G$325=840)*(апрель!E$8:E$325=A8)*(апрель!C$8:C$325)) -> 41497.6 | F8: =SUMPRODUCT((апрель!D$8:D$325=2)*(апрель!G$8:G$325=978)*(апрель!E$8:E$325=A8)*(апрель!C$8:C$325)) -> 0 | G8: =SUMPRODUCT((апрель!D$8:D$325=1)*(апрель!G$8:G$325=978)*(апрель!E$8:E$325=A8)*(апрель!C$8:C$325)) -> 0 | H8: =SUMPRODUCT((апрель!D$8:D$325=2)*(апрель!G$8:G$325=826)*(апрель!E$8:E$325=A8)*(апрель!C$8:C$325)) -> 0 | I8: =SUMPRODUCT((апрель!D$8:D$325=1)*(апрель!G$8:G$325=826)*(апрель!E$8:E$325=A8)*(апрель!C$8:C$325)) -> 0 | J8: =SUMPRODUCT((апрель!D$8:D$325=2)*(апрель!G$8:G$325=756)*(апрель!E$8:E$325=A8)*(апрель!C$8:C$325)) -> 0 | K8: =SUMPRODUCT((апрель!D$8:D$325=1)*(апрель!G$8:G$325=756)*(апрель!E$8:E$325=A8)*(апрель!C$8:C$325)) -> 0
A9: 10040 | D9: =SUMPRODUCT((апрель!D$8:D$325=2)*(апрель!G$8:G$325=840)*(апрель!E$8:E$325=A9)*(апрель!C$8:C$325)) -> 0 | E9: =SUMPRODUCT((апрель!D$8:D$325=1)*(апрель!G$8:G$325=840)*(апрель!E$8:E$325=A9)*(апрель!C$8:C$325)) -> 0 | F9: =SUMPRODUCT((апрель!D$8:D$325=2)*(апрель!G$8:G$325=978)*(апрель!E$8:E$325=A9)*(апрель!C$8:C$325)) -> 0 | G9: =SUMPRODUCT((апрель!D$8:D$325=1)*(апрель!G$8:G$325=978)*(апрель!E$8:E$325=A9)*(апрель!C$8:C$325)) -> 0 | H9: =SUMPRODUCT((апрель!D$8:D$325=2)*(апрель!G$8:G$325=826)*(апрель!E$8:E$325=A9)*(апрель!C$8:C$325)) -> 0 | I9: =SUMPRODUCT((апрель!D$8:D$325=1)*(апрель!G$8:G$325=826)*(апрель!E$8:E$325=A9)*(апрель!C$8:C$325)) -> 0 | J9: =SUMPRODUCT((апрель!D$8:D$325=2)*(апрель!G$8:G$325=756)*(апрель!E$8:E$325=A9)*(апрель!C$8:C$325)) -> 0 | K9: =SUMPRODUCT((апрель!D$8:D$325=1)*(апрель!G$8:G$325=756)*(апрель!E$8:E$325=A9)*(апрель!C$8:C$325)) -> 0
A10: 10050 | D10: =SUMPRODUCT((апрель!D$8:D$325=2)*(апрель!G$8:G$325=840)*(апрель!E$8:E$325=A10)*(апрель!C$8:C$325)) -> 0 | E10: =SUMPRODUCT((апрель!D$8:D$325=1)*(апрель!G$8:G$325=840)*(апрель!E$8:E$325=A10)*(апрель!C$8:C$325)) -> 19972 | F10: =SUMPRODUCT((апрель!D$8:D$325=2)*(апрель!G$8:G$325=978)*(апрель!E$8:E$325=A10)*(апрель!C$8:C$325)) -> 0 | G10: =SUMPRODUCT((апрель!D$8:D$325=1)*(апрель!G$8:G$325=978)*(апрель!E$8:E$325=A10)*(апрель!C$8:C$325)) -> 0 | H10: =SUMPRODUCT((апрель!D$8:D$325=2)*(апрель!G$8:G$325=826)*(апрель!E$8:E$325=A10)*(апрель!C$8:C$325)) -> 0 | I10: =SUMPRODUCT((апрель!D$8:D$325=1)*(апрель!G$8:G$325=826)*(апрель!E$8:E$325=A10)*(апрель!C$8:C$325)) -> 0 | J10: =SUMPRODUCT((апрель!D$8:D$325=2)*(апрель!G$8:G$325=756)*(апрель!E$8:E$325=A10)*(апрель!C$8:C$325)) -> 0 | K10: =SUMPRODUCT((апрель!D$8:D$325=1)*(апрель!G$8:G$325=756)*(апрель!E$8:E$325=A10)*(апрель!C$8:C$325)) -> 0
A11: 10080 | D11: =SUMPRODUCT((апрель!D$8:D$325=2)*(апрель!G$8:G$325=840)*(апрель!E$8:E$325=A11)*(апрель!C$8:C$325)) -> 0 | E11: =SUMPRODUCT((апрель!D$8:D$325=1)*(апрель!G$8:G$325=840)*(апрель!E$8:E$325=A11)*(апрель!C$8:C$325)) -> 0 | F11: =SUMPRODUCT((апрель!D$8:D$325=2)*(апрель!G$8:G$325=978)*(апрель!E$8:E$325=A11)*(апрель!C$8:C$325)) -> 0 | G11: =SUMPRODUCT((апрель!D$8:D$325=1)*(апрель!G$8:G$325=978)*(апрель!E$8:E$325=A11)*(апрель!C$8:C$325)) -> 9551.86 | H11: =SUMPRODUCT((апрель!D$8:D$325=2)*(апрель!G$8:G$325=826)*(апрель!E$8:E$325=A11)*(апрель!C$8:C$325)) -> 0 | I11: =SUMPRODUCT((апрель!D$8:D$325=1)*(апрель!G$8:G$325=826)*(апрель!E$8:E$325=A11)*(апрель!C$8:C$325)) -> 0 | J11: =SUMPRODUCT((апрель!D$8:D$325=2)*(апрель!G$8:G$325=756)*(апрель!E$8:E$325=A11)*(апрель!C$8:C$325)) -> 0 | K11: =SUMPRODUCT((апрель!D$8:D$325=1)*(апрель!G$8:G$325=756)*(апрель!E$8:E$325=A11)*(апрель!C$8:C$325)) -> 0
A12: 11010 | D12: =SUMPRODUCT((TEXT(апрель!$D$8:$D$325,0)=TEXT(2,0))*(TEXT(апрель!$G$8:$G$325,0)=TEXT(840,0))*(TEXT(апрель!$E$8:$E$325,0)=TEXT(A12,0))*(апрель!$C$8:$C$325)) -> 316629.09 | E12: =SUMPRODUCT((TEXT(апрель!$D$8:$D$325,0)=TEXT(1,0))*(TEXT(апрель!$G$8:$G$325,0)=TEXT(840,0))*(TEXT(апрель!$E$8:$E$325,0)=TEXT(B12,0))*(апрель!$C$8:$C$325)) -> 0 | F12: =SUMPRODUCT((апрель!D$8:D$325=2)*(апрель!G$8:G$325=978)*(апрель!E$8:E$325=A12)*(апрель!C$8:C$325)) -> 18600 | G12: =SUMPRODUCT((апрель!D$8:D$325=1)*(апрель!G$8:G$325=978)*(апрель!E$8:E$325=A12)*(апрель!C$8:C$325)) -> 0 | H12: =SUMPRODUCT((апрель!D$8:D$325=2)*(апрель!G$8:G$325=826)*(апрель!E$8:E$325=A12)*(апрель!C$8:C$325)) -> 0 | I12: =SUMPRODUCT((апрель!D$8:D$325=1)*(апрель!G$8:G$325=826)*(апрель!E$8:E$325=A12)*(апрель!C$8:C$325)) -> 0 | J12: =SUMPRODUCT((апрель!D$8:D$325=2)*(апрель!G$8:G$325=756)*(апрель!E$8:E$325=A12)*(апрель!C$8:C$325)) -> 0 | K12: =SUMPRODUCT((апрель!D$8:D$325=1)*(апрель!G$8:G$325=756)*(апрель!E$8:E$325=A12)*(апрель!C$8:C$325)) -> 0
A13: 11020 | D13: =SUMPRODUCT((TEXT(апрель!$D$8:$D$325,0)=TEXT(2,0))*(TEXT(апрель!$G$8:$G$325,0)=TEXT(840,0))*(TEXT(апрель!$E$8:$E$325,0)=TEXT(A13,0))*(апрель!$C$8:$C$325)) -> 75500 | E13: =SUMPRODUCT((апрель!D$8:D$325=1)*(апрель!G$8:G$325=840)*(апрель!E$8:E$325=A13)*(апрель!C$8:C$325)) -> 0 | F13: =SUMPRODUCT((апрель!D$8:D$325=2)*(апрель!G$8:G$325=978)*(апрель!E$8:E$325=A13)*(апрель!C$8:C$325)) -> 58968.54 | G13: =SUMPRODUCT((апрель!D$8:D$325=1)*(апрель!G$8:G$325=978)*(апрель!E$8:E$325=A13)*(апрель!C$8:C$325)) -> 0 | H13: =SUMPRODUCT((апрель!D$8:D$325=2)*(апрель!G$8:G$325=826)*(апрель!E$8:E$325=A13)*(апрель!C$8:C$325)) -> 0 | I13: =SUMPRODUCT((апрель!D$8:D$325=1)*(апрель!G$8:G$325=826)*(апрель!E$8:E$325=A13)*(апрель!C$8:C$325)) -> 0 | J13: =SUMPRODUCT((апрель!D$8:D$325=2)*(апрель!G$8:G$325=756)*(апрель!E$8:E$325=A13)*(апрель!C$8:C$325)) -> 0 | K13: =SUMPRODUCT((апрель!D$8:D$325=1)*(апрель!G$8:G$325=756)*(апрель!E$8:E$325=A13)*(апрель!C$8:C$325)) -> 0
A14: 11030 | D14: =SUMPRODUCT((TEXT(апрель!$D$8:$D$325,0)=TEXT(2,0))*(TEXT(апрель!$G$8:$G$325,0)=TEXT(840,0))*(TEXT(апрель!$E$8:$E$325,0)=TEXT(A14,0))*(апрель!$C$8:$C$325)) -> 48662.48 | E14: =SUMPRODUCT((апрель!D$8:D$325=1)*(апрель!G$8:G$325=840)*(апрель!E$8:E$325=A14)*(апрель!C$8:C$325)) -> 0 | F14: =SUMPRODUCT((апрель!D$8:D$325=2)*(апрель!G$8:G$325=978)*(апрель!E$8:E$325=A14)*(апрель!C$8:C$325)) -> 72575.98 | G14: =SUMPRODUCT((апрель!D$8:D$325=1)*(апрель!G$8:G$325=978)*(апрель!E$8:E$325=A14)*(апрель!C$8:C$325)) -> 0 | H14: =SUMPRODUCT((апрель!D$8:D$325=2)*(апрель!G$8:G$325=826)*(апрель!E$8:E$325=A14)*(апрель!C$8:C$325)) -> 0 | I14: =SUMPRODUCT((апрель!D$8:D$325=1)*(апрель!G$8:G$325=826)*(апрель!E$8:E$325=A14)*(апрель!C$8:C$325)) -> 0 | J14: =SUMPRODUCT((апрель!D$8:D$325=2)*(апрель!G$8:G$325=756)*(апрель!E$8:E$325=A14)*(апрель!C$8:C$325)) -> 0 | K14: =SUMPRODUCT((апрель!D$8:D$325=1)*(апрель!G$8:G$325=756)*(апрель!E$8:E$325=A14)*(апрель!C$8:C$325)) -> 0
A15: 11050 | D15: =SUMPRODUCT((TEXT(апрель!$D$8:$D$325,0)=TEXT(2,0))*(TEXT(апрель!$G$8:$G$325,0)=TEXT(840,0))*(TEXT(апрель!$E$8:$E$325,0)=TEXT(A15,0))*(апрель!$C$8:$C$325)) -> 123219.78 | E15: =SUMPRODUCT((апрель!D$8:D$325=1)*(апрель!G$8:G$325=840)*(апрель!E$8:E$325=A15)*(апрель!C$8:C$325)) -> 0 | F15: =SUMPRODUCT((апрель!D$8:D$325=2)*(апрель!G$8:G$325=978)*(апрель!E$8:E$325=A15)*(апрель!C$8:C$325)) -> 53490.6 | G15: =SUMPRODUCT((апрель!D$8:D$325=1)*(апрель!G$8:G$325=978)*(апрель!E$8:E$325=A15)*(апрель!C$8:C$325)) -> 0 | H15: =SUMPRODUCT((апрель!D$8:D$325=2)*(апрель!G$8:G$325=826)*(апрель!E$8:E$325=A15)*(апрель!C$8:C$325)) -> 4155.73 | I15: =SUMPRODUCT((апрель!D$8:D$325=1)*(апрель!G$8:G$325=826)*(апрель!E$8:E$325=A15)*(апрель!C$8:C$325)) -> 0 | J15: =SUMPRODUCT((апрель!D$8:D$325=2)*(апрель!G$8:G$325=756)*(апрель!E$8:E$325=A15)*(апрель!C$8:C$325)) -> 0 | K15: =SUMPRODUCT((апрель!D$8:D$325=1)*(апрель!G$8:G$325=756)*(апрель!E$8:E$325=A15)*(апрель!C$8:C$325)) -> 0
A16: 13010 | D16: =SUMPRODUCT((TEXT(апрель!$D$8:$D$325,0)=TEXT(2,0))*(TEXT(апрель!$G$8:$G$325,0)=TEXT(840,0))*(TEXT(апрель!$E$8:$E$325,0)=TEXT(A16,0))*(апрель!$C$8:$C$325)) -> 0 | E16: =SUMPRODUCT((апрель!D$8:D$325=1)*(апрель!G$8:G$325=840)*(апрель!E$8:E$325=A16)*(апрель!C$8:C$325)) -> 0 | F16: =SUMPRODUCT((апрель!D$8:D$325=2)*(апрель!G$8:G$325=978)*(апрель!E$8:E$325=A16)*(апрель!C$8:C$325)) -> 0 | G16: =SUMPRODUCT((апрель!D$8:D$325=1)*(апрель!G$8:G$325=978)*(апрель!E$8:E$325=A16)*(апрель!C$8:C$325)) -> 0 | H16: =SUMPRODUCT((апрель!D$8:D$325=2)*(апрель!G$8:G$325=826)*(апрель!E$8:E$325=A16)*(апрель!C$8:C$325)) -> 0 | I16: =SUMPRODUCT((апрель!D$8:D$325=1)*(апрель!G$8:G$325=826)*(апрель!E$8:E$325=A16)*(апрель!C$8:C$325)) -> 0 | J16: =SUMPRODUCT((апрель!D$8:D$325=2)*(апрель!G$8:G$325=756)*(апрель!E$8:E$325=A16)*(апрель!C$8:C$325)) -> 0 | K16: =SUMPRODUCT((апрель!D$8:D$325=1)*(апрель!G$8:G$325=756)*(апрель!E$8:E$325=A16)*(апрель!C$8:C$325)) -> 0
A17: 13020 | D17: =SUMPRODUCT((TEXT(апрель!$D$8:$D$325,0)=TEXT(2,0))*(TEXT(апрель!$G$8:$G$325,0)=TEXT(840,0))*(TEXT(апрель!$E$8:$E$325,0)=TEXT(A17,0))*(апрель!$C$8:$C$325)) -> 0 | E17: =SUMPRODUCT((апрель!D$8:D$325=1)*(апрель!G$8:G$325=840)*(апрель!E$8:E$325=A17)*(апрель!C$8:C$325)) -> 0 | F17: =SUMPRODUCT((апрель!D$8:D$325=2)*(апрель!G$8:G$325=978)*(апрель!E$8:E$325=A17)*(апрель!C$8:C$325)) -> 0 | G17: =SUMPRODUCT((апрель!D$8:D$325=1)*(апрель!G$8:G$325=978)*(апрель!E$8:E$325=A17)*(апрель!C$8:C$325)) -> 0 | H17: =SUMPRODUCT((апрель!D$8:D$325=2)*(апрель!G$8:G$325=826)*(апрель!E$8:E$325=A17)*(апрель!C$8:C$325)) -> 0 | I17: =SUMPRODUCT((апрель!D$8:D$325=1)*(апрель!G$8:G$325=826)*(апрель!E$8:E$325=A17)*(апрель!C$8:C$325)) -> 0 | J17: =SUMPRODUCT((апрель!D$8:D$325=2)*(апрель!G$8:G$325=756)*(апрель!E$8:E$325=A17)*(апрель!C$8:C$325)) -> 0 | K17: =SUMPRODUCT((апрель!D$8:D$325=1)*(апрель!G$8:G$325=756)*(апрель!E$8:E$325=A17)*(апрель!C$8:C$325)) -> 0
A18: 20020 | D18: =SUMPRODUCT((TEXT(апрель!$D$8:$D$325,0)=TEXT(2,0))*(TEXT(апрель!$G$8:$G$325,0)=TEXT(840,0))*(TEXT(апрель!$E$8:$E$325,0)=TEXT(A18,0))*(апрель!$C$8:$C$325)) -> 0 | E18: =SUMPRODUCT((апрель!D$8:D$325=1)*(апрель!G$8:G$325=840)*(апрель!E$8:E$325=A18)*(апрель!C$8:C$325)) -> 301085.48 | F18: =SUMPRODUCT((апрель!D$8:D$325=2)*(апрель!G$8:G$325=978)*(апрель!E$8:E$325=A18)*(апрель!C$8:C$325)) -> 0 | G18: =SUMPRODUCT((апрель!D$8:D$325=1)*(апрель!G$8:G$325=978)*(апрель!E$8:E$325=A18)*(апрель!C$8:C$325)) -> 93446.6 | H18: =SUMPRODUCT((апрель!D$8:D$325=2)*(апрель!G$8:G$325=826)*(апрель!E$8:E$325=A18)*(апрель!C$8:C$325)) -> 0 | I18: =SUMPRODUCT((апрель!D$8:D$325=1)*(апрель!G$8:G$325=826)*(апрель!E$8:E$325=A18)*(апрель!C$8:C$325)) -> 0 | J18: =SUMPRODUCT((апрель!D$8:D$325=2)*(апрель!G$8:G$325=756)*(апрель!E$8:E$325=A18)*(апрель!C$8:C$325)) -> 0 | K18: =SUMPRODUCT((апрель!D$8:D$325=1)*(апрель!G$8:G$325=756)*(апрель!E$8:E$325=A18)*(апрель!C$8:C$325)) -> 0
A19: 20050 | D19: =SUMPRODUCT((TEXT(апрель!$D$8:$D$325,0)=TEXT(2,0))*(TEXT(апрель!$G$8:$G$325,0)=TEXT(840,0))*(TEXT(апрель!$E$8:$E$325,0)=TEXT(A19,0))*(апрель!$C$8:$C$325)) -> 0 | E19: =SUMPRODUCT((апрель!D$8:D$325=1)*(апрель!G$8:G$325=840)*(апрель!E$8:E$325=A19)*(апрель!C$8:C$325))+557.26-1 -> 722695.65 | F19: =SUMPRODUCT((апрель!D$8:D$325=2)*(апрель!G$8:G$325=978)*(апрель!E$8:E$325=A19)*(апрель!C$8:C$325)) -> 0 | G19: =SUMPRODUCT((апрель!D$8:D$325=1)*(апрель!G$8:G$325=978)*(апрель!E$8:E$325=A19)*(апрель!C$8:C$325))-557.26 -> 96385.4 | H19: =SUMPRODUCT((апрель!D$8:D$325=2)*(апрель!G$8:G$325=826)*(апрель!E$8:E$325=A19)*(апрель!C$8:C$325)) -> 0 | I19: =SUMPRODUCT((апрель!D$8:D$325=1)*(апрель!G$8:G$325=826)*(апрель!E$8:E$325=A19)*(апрель!C$8:C$325)) -> 0 | J19: =SUMPRODUCT((апрель!D$8:D$325=2)*(апрель!G$8:G$325=756)*(апрель!E$8:E$325=A19)*(апрель!C$8:C$325)) -> 0 | K19: =SUMPRODUCT((апрель!D$8:D$325=1)*(апрель!G$8:G$325=756)*(апрель!E$8:E$325=A19)*(апрель!C$8:C$325)) -> 0
A20: 21010 | D20: =SUMPRODUCT((TEXT(апрель!$D$8:$D$325,0)=TEXT(2,0))*(TEXT(апрель!$G$8:$G$325,0)=TEXT(840,0))*(TEXT(апрель!$E$8:$E$325,0)=TEXT(A20,0))*(апрель!$C$8:$C$325)) -> 10535.28 | E20: =SUMPRODUCT((апрель!D$8:D$325=1)*(апрель!G$8:G$325=840)*(апрель!E$8:E$325=A20)*(апрель!C$8:C$325)) -> 0 | F20: =SUMPRODUCT((апрель!D$8:D$325=2)*(апрель!G$8:G$325=978)*(апрель!E$8:E$325=A20)*(апрель!C$8:C$325)) -> 0 | G20: =SUMPRODUCT((апрель!D$8:D$325=1)*(апрель!G$8:G$325=978)*(апрель!E$8:E$325=A20)*(апрель!C$8:C$325)) -> 0 | H20: =SUMPRODUCT((апрель!D$8:D$325=2)*(апрель!G$8:G$325=826)*(апрель!E$8:E$325=A20)*(апрель!C$8:C$325)) -> 0 | I20: =SUMPRODUCT((апрель!D$8:D$325=1)*(апрель!G$8:G$325=826)*(апрель!E$8:E$325=A20)*(апрель!C$8:C$325)) -> 0 | J20: =SUMPRODUCT((апрель!D$8:D$325=2)*(апрель!G$8:G$325=756)*(апрель!E$8:E$325=A20)*(апрель!C$8:C$325)) -> 0 | K20: =SUMPRODUCT((апрель!D$8:D$325=1)*(апрель!G$8:G$325=756)*(апрель!E$8:E$325=A20)*(апрель!C$8:C$325)) -> 0
A21: 21020 | D21: =SUMPRODUCT((TEXT(апрель!$D$8:$D$325,0)=TEXT(2,0))*(TEXT(апрель!$G$8:$G$325,0)=TEXT(840,0))*(TEXT(апрель!$E$8:$E$325,0)=TEXT(A21,0))*(апрель!$C$8:$C$325)) -> 500 | E21: =SUMPRODUCT((апрель!D$8:D$325=1)*(апрель!G$8:G$325=840)*(апрель!E$8:E$325=A21)*(апрель!C$8:C$325)) -> 0 | F21: =SUMPRODUCT((апрель!D$8:D$325=2)*(апрель!G$8:G$325=978)*(апрель!E$8:E$325=A21)*(апрель!C$8:C$325)) -> 0 | G21: =SUMPRODUCT((апрель!D$8:D$325=1)*(апрель!G$8:G$325=978)*(апрель!E$8:E$325=A21)*(апрель!C$8:C$325)) -> 0 | H21: =SUMPRODUCT((апрель!D$8:D$325=2)*(апрель!G$8:G$325=826)*(апрель!E$8:E$325=A21)*(апрель!C$8:C$325)) -> 0 | I21: =SUMPRODUCT((апрель!D$8:D$325=1)*(апрель!G$8:G$325=826)*(апрель!E$8:E$325=A21)*(апрель!C$8:C$325)) -> 0 | J21: =SUMPRODUCT((апрель!D$8:D$325=2)*(апрель!G$8:G$325=756)*(апрель!E$8:E$325=A21)*(апрель!C$8:C$325)) -> 0 | K21: =SUMPRODUCT((апрель!D$8:D$325=1)*(апрель!G$8:G$325=756)*(апрель!E$8:E$325=A21)*(апрель!C$8:C$325)) -> 0
A22: 30030 | D22: =SUMPRODUCT((TEXT(апрель!$D$8:$D$325,0)=TEXT(2,0))*(TEXT(апрель!$G$8:$G$325,0)=TEXT(840,0))*(TEXT(апрель!$E$8:$E$325,0)=TEXT(A22,0))*(апрель!$C$8:$C$325)) -> 0 | E22: =SUMPRODUCT((апрель!D$8:D$325=1)*(апрель!G$8:G$325=840)*(апрель!E$8:E$325=A22)*(апрель!C$8:C$325)) -> 0 | F22: =SUMPRODUCT((апрель!D$8:D$325=2)*(апрель!G$8:G$325=978)*(апрель!E$8:E$325=A22)*(апрель!C$8:C$325)) -> 0 | G22: =SUMPRODUCT((апрель!D$8:D$325=1)*(апрель!G$8:G$325=978)*(апрель!E$8:E$325=A22)*(апрель!C$8:C$325)) -> 0 | H22: =SUMPRODUCT((апрель!D$8:D$325=2)*(апрель!G$8:G$325=826)*(апрель!E$8:E$325=A22)*(апрель!C$8:C$325)) -> 0 | I22: =SUMPRODUCT((апрель!D$8:D$325=1)*(апрель!G$8:G$325=826)*(апрель!E$8:E$325=A22)*(апрель!C$8:C$325)) -> 0 | J22: =SUMPRODUCT((апрель!D$8:D$325=2)*(апрель!G$8:G$325=756)*(апрель!E$8:E$325=A22)*(апрель!C$8:C$325)) -> 0 | K22: =SUMPRODUCT((апрель!D$8:D$325=1)*(апрель!G$8:G$325=756)*(апрель!E$8:E$325=A22)*(апрель!C$8:C$325)) -> 0
A23: 35010 | D23: =SUMPRODUCT((TEXT(апрель!$D$8:$D$325,0)=TEXT(2,0))*(TEXT(апрель!$G$8:$G$325,0)=TEXT(840,0))*(TEXT(апрель!$E$8:$E$325,0)=TEXT(A23,0))*(апрель!$C$8:$C$325)) -> 0 | E23: =SUMPRODUCT((апрель!D$8:D$325=1)*(апрель!G$8:G$325=840)*(апрель!E$8:E$325=A23)*(апрель!C$8:C$325)) -> 0 | F23: =SUMPRODUCT((апрель!D$8:D$325=2)*(апрель!G$8:G$325=978)*(апрель!E$8:E$325=A23)*(апрель!C$8:C$325)) -> 0 | G23: =SUMPRODUCT((апрель!D$8:D$325=1)*(апрель!G$8:G$325=978)*(апрель!E$8:E$325=A23)*(апрель!C$8:C$325)) -> 0 | H23: =SUMPRODUCT((апрель!D$8:D$325=2)*(апрель!G$8:G$325=826)*(апрель!E$8:E$325=A23)*(апрель!C$8:C$325)) -> 0 | I23: =SUMPRODUCT((апрель!D$8:D$325=1)*(апрель!G$8:G$325=826)*(апрель!E$8:E$325=A23)*(апрель!C$8:C$325)) -> 0 | J23: =SUMPRODUCT((апрель!D$8:D$325=2)*(апрель!G$8:G$325=756)*(апрель!E$8:E$325=A23)*(апрель!C$8:C$325)) -> 0 | K23: =SUMPRODUCT((апрель!D$8:D$325=1)*(апрель!G$8:G$325=756)*(апрель!E$8:E$325=A23)*(апрель!C$8:C$325)) -> 0
A24: 35020 | D24: =SUMPRODUCT((TEXT(апрель!$D$8:$D$325,0)=TEXT(2,0))*(TEXT(апрель!$G$8:$G$325,0)=TEXT(840,0))*(TEXT(апрель!$E$8:$E$325,0)=TEXT(A24,0))*(апрель!$C$8:$C$325)) -> 0 | E24: =SUMPRODUCT((апрель!D$8:D$325=1)*(апрель!G$8:G$325=840)*(апрель!E$8:E$325=A24)*(апрель!C$8:C$325)) -> 61687 | F24: =SUMPRODUCT((апрель!D$8:D$325=2)*(апрель!G$8:G$325=978)*(апрель!E$8:E$325=A24)*(апрель!C$8:C$325)) -> 48159.4 | G24: =SUMPRODUCT((апрель!D$8:D$325=1)*(апрель!G$8:G$325=978)*(апрель!E$8:E$325=A24)*(апрель!C$8:C$325)) -> 0 | H24: =SUMPRODUCT((апрель!D$8:D$325=2)*(апрель!G$8:G$325=826)*(апрель!E$8:E$325=A24)*(апрель!C$8:C$325)) -> 0 | I24: =SUMPRODUCT((апрель!D$8:D$325=1)*(апрель!G$8:G$325=826)*(апрель!E$8:E$325=A24)*(апрель!C$8:C$325)) -> 0 | J24: =SUMPRODUCT((апрель!D$8:D$325=2)*(апрель!G$8:G$325=756)*(апрель!E$8:E$325=A24)*(апрель!C$8:C$325)) -> 0 | K24: =SUMPRODUCT((апрель!D$8:D$325=1)*(апрель!G$8:G$325=756)*(апрель!E$8:E$325=A24)*(апрель!C$8:C$325)) -> 0
A25: 43040 | D25: =SUMPRODUCT((TEXT(апрель!$D$8:$D$325,0)=TEXT(2,0))*(TEXT(апрель!$G$8:$G$325,0)=TEXT(840,0))*(TEXT(апрель!$E$8:$E$325,0)=TEXT(A25,0))*(апрель!$C$8:$C$325)) -> 0
A26: 60070 | D26: =SUMPRODUCT((TEXT(апрель!$D$8:$D$325,0)=TEXT(2,0))*(TEXT(апрель!$G$8:$G$325,0)=TEXT(840,0))*(TEXT(апрель!$E$8:$E$325,0)=TEXT(A26,0))*(апрель!$C$8:$C$325)) -> 0
A27: 61100 | D27: =SUMPRODUCT((TEXT(апрель!$D$8:$D$325,0)=TEXT(2,0))*(TEXT(апрель!$G$8:$G$325,0)=TEXT(840,0))*(TEXT(апрель!$E$8:$E$325,0)=TEXT(A27,0))*(апрель!$C$8:$C$325)) -> 289420.5 | E27: =SUMPRODUCT((апрель!D$8:D$325=1)*(апрель!G$8:G$325=840)*(апрель!E$8:E$325=A27)*(апрель!C$8:C$325)) -> 289420.5 | F27: =SUMPRODUCT((апрель!D$8:D$325=2)*(апрель!G$8:G$325=978)*(апрель!E$8:E$325=A27)*(апрель!C$8:C$325)) -> 96885 | G27: =SUMPRODUCT((апрель!D$8:D$325=1)*(апрель!G$8:G$325=978)*(апрель!E$8:E$325=A27)*(апрель!C$8:C$325)) -> 96885 | H27: =SUMPRODUCT((апрель!D$8:D$325=2)*(апрель!G$8:G$325=826)*(апрель!E$8:E$325=A27)*(апрель!C$8:C$325)) -> 0 | I27: =SUMPRODUCT((апрель!D$8:D$325=1)*(апрель!G$8:G$325=826)*(апрель!E$8:E$325=A27)*(апрель!C$8:C$325)) -> 0 | J27: =SUMPRODUCT((апрель!D$8:D$325=2)*(апрель!G$8:G$325=756)*(апрель!E$8:E$325=A27)*(апрель!C$8:C$325)) -> 0 | K27: =SUMPRODUCT((апрель!D$8:D$325=1)*(апрель!G$8:G$325=756)*(апрель!E$8:E$325=A27)*(апрель!C$8:C$325)) -> 0
A28: 70010 | D28: =SUMPRODUCT((TEXT(апрель!$D$8:$D$325,0)=TEXT(2,0))*(TEXT(апрель!$G$8:$G$325,0)=TEXT(840,0))*(TEXT(апрель!$E$8:$E$325,0)=TEXT(A28,0))*(апрель!$C$8:$C$325)) -> 0
A29: 70020 | D29: =SUMPRODUCT((TEXT(апрель!$D$8:$D$325,0)=TEXT(2,0))*(TEXT(апрель!$G$8:$G$325,0)=TEXT(840,0))*(TEXT(апрель!$E$8:$E$325,0)=TEXT(A29,0))*(апрель!$C$8:$C$325)) -> 0
A30: 70030 | D30: =SUMPRODUCT((TEXT(апрель!$D$8:$D$325,0)=TEXT(2,0))*(TEXT(апрель!$G$8:$G$325,0)=TEXT(840,0))*(TEXT(апрель!$E$8:$E$325,0)=TEXT(A30,0))*(апрель!$C$8:$C$325)) -> 0 | E30: =SUMPRODUCT((апрель!D$8:D$325=1)*(апрель!G$8:G$325=840)*(апрель!E$8:E$325=A30)*(апрель!C$8:C$325)) -> 25000 | F30: =SUMPRODUCT((апрель!D$8:D$325=2)*(апрель!G$8:G$325=978)*(апрель!E$8:E$325=A30)*(апрель!C$8:C$325)) -> 0 | G30: =SUMPRODUCT((апрель!D$8:D$325=1)*(апрель!G$8:G$325=978)*(апрель!E$8:E$325=A30)*(апрель!C$8:C$325)) -> 0 | H30: =SUMPRODUCT((апрель!D$8:D$325=2)*(апрель!G$8:G$325=826)*(апрель!E$8:E$325=A30)*(апрель!C$8:C$325)) -> 0 | I30: =SUMPRODUCT((апрель!D$8:D$325=1)*(апрель!G$8:G$325=826)*(апрель!E$8:E$325=A30)*(апрель!C$8:C$325)) -> 0 | J30: =SUMPRODUCT((апрель!D$8:D$325=2)*(апрель!G$8:G$325=756)*(апрель!E$8:E$325=A30)*(апрель!C$8:C$325)) -> 0 | K30: =SUMPRODUCT((апрель!D$8:D$325=1)*(апрель!G$8:G$325=756)*(апрель!E$8:E$325=A30)*(апрель!C$8:C$325)) -> 0
A31: 70050 | D31: =SUMPRODUCT((TEXT(апрель!$D$8:$D$325,0)=TEXT(2,0))*(TEXT(апрель!$G$8:$G$325,0)=TEXT(840,0))*(TEXT(апрель!$E$8:$E$325,0)=TEXT(A31,0))*(апрель!$C$8:$C$325)) -> 0
A32: 70060 | D32: =SUMPRODUCT((TEXT(апрель!$D$8:$D$325,0)=TEXT(2,0))*(TEXT(апрель!$G$8:$G$325,0)=TEXT(840,0))*(TEXT(апрель!$E$8:$E$325,0)=TEXT(A32,0))*(апрель!$C$8:$C$325)) -> 0 | E32: =SUMPRODUCT((апрель!D$8:D$325=1)*(апрель!G$8:G$325=840)*(апрель!E$8:E$325=A32)*(апрель!C$8:C$325)) -> 0 | F32: =SUMPRODUCT((апрель!D$8:D$325=2)*(апрель!G$8:G$325=978)*(апрель!E$8:E$325=A32)*(апрель!C$8:C$325)) -> 0 | G32: =SUMPRODUCT((апрель!D$8:D$325=1)*(апрель!G$8:G$325=978)*(апрель!E$8:E$325=A32)*(апрель!C$8:C$325)) -> 0 | H32: =SUMPRODUCT((апрель!D$8:D$325=2)*(апрель!G$8:G$325=826)*(апрель!E$8:E$325=A32)*(апрель!C$8:C$325)) -> 0 | I32: =SUMPRODUCT((апрель!D$8:D$325=1)*(апрель!G$8:G$325=826)*(апрель!E$8:E$325=A32)*(апрель!C$8:C$325)) -> 0 | J32: =SUMPRODUCT((апрель!D$8:D$325=2)*(апрель!G$8:G$325=756)*(апрель!E$8:E$325=A32)*(апрель!C$8:C$325)) -> 0 | K32: =SUMPRODUCT((апрель!D$8:D$325=1)*(апрель!G$8:G$325=756)*(апрель!E$8:E$325=A32)*(апрель!C$8:C$325)) -> 0
A33: 70080 | D33: =SUMPRODUCT((TEXT(апрель!$D$8:$D$325,0)=TEXT(2,0))*(TEXT(апрель!$G$8:$G$325,0)=TEXT(840,0))*(TEXT(апрель!$E$8:$E$325,0)=TEXT(A33,0))*(апрель!$C$8:$C$325)) -> 0 | E33: =SUMPRODUCT((апрель!D$8:D$325=1)*(апрель!G$8:G$325=840)*(апрель!E$8:E$325=A33)*(апрель!C$8:C$325)) -> 0 | F33: =SUMPRODUCT((апрель!D$8:D$325=2)*(апрель!G$8:G$325=978)*(апрель!E$8:E$325=A33)*(апрель!C$8:C$325)) -> 0 | G33: =SUMPRODUCT((апрель!D$8:D$325=1)*(апрель!G$8:G$325=978)*(апрель!E$8:E$325=A33)*(апрель!C$8:C$325)) -> 0 | H33: =SUMPRODUCT((апрель!D$8:D$325=2)*(апрель!G$8:G$325=826)*(апрель!E$8:E$325=A33)*(апрель!C$8:C$325)) -> 0 | I33: =SUMPRODUCT((апрель!D$8:D$325=1)*(апрель!G$8:G$325=826)*(апрель!E$8:E$325=A33)*(апрель!C$8:C$325)) -> 0 | J33: =SUMPRODUCT((апрель!D$8:D$325=2)*(апрель!G$8:G$325=756)*(апрель!E$8:E$325=A33)*(апрель!C$8:C$325)) -> 0 | K33: =SUMPRODUCT((апрель!D$8:D$325=1)*(апрель!G$8:G$325=756)*(апрель!E$8:E$325=A33)*(апрель!C$8:C$325)) -> 0
A34: 99010 | D34: =SUMPRODUCT((TEXT(апрель!$D$8:$D$325,0)=TEXT(2,0))*(TEXT(апрель!$G$8:$G$325,0)=TEXT(840,0))*(TEXT(апрель!$E$8:$E$325,0)=TEXT(A34,0))*(апрель!$C$8:$C$325)) -> 0 | E34: =SUMPRODUCT((апрель!D$8:D$325=1)*(апрель!G$8:G$325=840)*(апрель!E$8:E$325=A34)*(апрель!C$8:C$325)) -> 0 | F34: =SUMPRODUCT((апрель!D$8:D$325=2)*(апрель!G$8:G$325=978)*(апрель!E$8:E$325=A34)*(апрель!C$8:C$325)) -> 0 | G34: =SUMPRODUCT((апрель!D$8:D$325=1)*(апрель!G$8:G$325=978)*(апрель!E$8:E$325=A34)*(апрель!C$8:C$325)) -> 0 | H34: =SUMPRODUCT((апрель!D$8:D$325=2)*(апрель!G$8:G$325=826)*(апрель!E$8:E$325=A34)*(апрель!C$8:C$325)) -> 0 | I34: =SUMPRODUCT((апрель!D$8:D$325=1)*(апрель!G$8:G$325=826)*(апрель!E$8:E$325=A34)*(апрель!C$8:C$325)) -> 0 | J34: =SUMPRODUCT((апрель!D$8:D$325=2)*(апрель!G$8:G$325=756)*(апрель!E$8:E$325=A34)*(апрель!C$8:C$325)) -> 0 | K34: =SUMPRODUCT((апрель!D$8:D$325=1)*(апрель!G$8:G$325=756)*(апрель!E$8:E$325=A34)*(апрель!C$8:C$325)) -> 0
A35: 99020 | D35: =SUMPRODUCT((TEXT(апрель!$D$8:$D$325,0)=TEXT(2,0))*(TEXT(апрель!$G$8:$G$325,0)=TEXT(840,0))*(TEXT(апрель!$E$8:$E$325,0)=TEXT(A35,0))*(апрель!$C$8:$C$325)) -> 0
A36: 99060 | D36: =SUMPRODUCT((TEXT(апрель!$D$8:$D$325,0)=TEXT(2,0))*(TEXT(апрель!$G$8:$G$325,0)=TEXT(840,0))*(TEXT(апрель!$E$8:$E$325,0)=TEXT(A36,0))*(апрель!$C$8:$C$325)) -> 0
A37: 99090 | D37: =SUMPRODUCT((TEXT(апрель!$D$8:$D$325,0)=TEXT(2,0))*(TEXT(апрель!$G$8:$G$325,0)=TEXT(840,0))*(TEXT(апрель!$E$8:$E$325,0)=TEXT(A37,0))*(апрель!$C$8:$C$325)) -> 2950 | E37: =SUMPRODUCT((апрель!D$8:D$325=1)*(апрель!G$8:G$325=840)*(апрель!E$8:E$325=A37)*(апрель!C$8:C$325)) -> 0 | F37: =SUMPRODUCT((апрель!D$8:D$325=2)*(апрель!G$8:G$325=978)*(апрель!E$8:E$325=A37)*(апрель!C$8:C$325)) -> 0 | G37: =SUMPRODUCT((апрель!D$8:D$325=1)*(апрель!G$8:G$325=978)*(апрель!E$8:E$325=A37)*(апрель!C$8:C$325)) -> 0 | H37: =SUMPRODUCT((апрель!D$8:D$325=2)*(апрель!G$8:G$325=826)*(апрель!E$8:E$325=A37)*(апрель!C$8:C$325)) -> 0 | I37: =SUMPRODUCT((апрель!D$8:D$325=1)*(апрель!G$8:G$325=826)*(апрель!E$8:E$325=A37)*(апрель!C$8:C$325)) -> 0 | J37: =SUMPRODUCT((апрель!D$8:D$325=2)*(апрель!G$8:G$325=756)*(апрель!E$8:E$325=A37)*(апрель!C$8:C$325)) -> 0 | K37: =SUMPRODUCT((апрель!D$8:D$325=1)*(апрель!G$8:G$325=756)*(апрель!E$8:E$325=A37)*(апрель!C$8:C$325)) -> 0

Sheet коды
B1: 2 | C1: 1 | D1: 2 | E1: 1 | F1: 2 | G1: 1 | H1: 2 | I1: 1 | J1: 2 | K1: 1
B2: списание | C2: зачисление | D2: списание | E2: зачисление | F2: списание | G2: зачисление | H2: списание | I2: зачисление | J2: списание | K2: зачисление
B3: 643 | C3: 643 | D3: 840 | E3: 840 | F3: 978 | G3: 978 | H3: 826 | I3: 826 | J3: 756 | K3: 756
A4: 01010 | D4: 1345329.93 | E4: 0 | F4: 215406.07 | G4: 0 | H4: 25395 | I4: 0 | J4: 0 | K4: 0
A5: 01030 | D5: 0 | E5: 504780.33 | F5: 0 | G5: 383620.63 | H5: 0 | I5: 4155.73 | J5: 0 | K5: 0
A6: 01040 | D6: 0 | E6: 0 | F6: 0 | G6: 0 | H6: 0 | I6: 0 | J6: 0 | K6: 0
A7: 10010 | D7: 0 | E7: 0 | F7: 0 | G7: 0 | H7: 0 | I7: 0 | J7: 0 | K7: 0
A8: 10030 | D8: 0 | E8: 41497.6 | F8: 0 | G8: 0 | H8: 0 | I8: 0 | J8: 0 | K8: 0
A9: 10040 | D9: 0 | E9: 0 | F9: 0 | G9: 0 | H9: 0 | I9: 0 | J9: 0 | K9: 0
A10: 10050 | D10: 0 | E10: 19972 | F10: 0 | G10: 0 | H10: 0 | I10: 0 | J10: 0 | K10: 0
A11: 10080 | D11: 0 | E11: 0 | F11: 0 | G11: 9551.86 | H11: 0 | I11: 0 | J11: 0 | K11: 0
A12: 11010 | D12: 316629.09 | E12: 0 | F12: 18600 | G12: 0 | H12: 0 | I12: 0 | J12: 0 | K12: 0
A13: 11020 | D13: 75500 | E13: 0 | F13: 58968.54 | G13: 0 | H13: 0 | I13: 0 | J13: 0 | K13: 0
A14: 11030 | D14: 48662.48 | E14: 0 | F14: 72575.98 | G14: 0 | H14: 0 | I14: 0 | J14: 0 | K14: 0
A15: 11050 | D15: 123219.78 | E15: 0 | F15: 53490.6 | G15: 0 | H15: 4155.73 | I15: 0 | J15: 0 | K15: 0
A16: 13010 | D16: 0 | E16: 0 | F16: 0 | G16: 0 | H16: 0 | I16: 0 | J16: 0 | K16: 0
A17: 13020 | D17: 0 | E17: 0 | F17: 0 | G17: 0 | H17: 0 | I17: 0 | J17: 0 | K17: 0
A18: 20020 | D18: 0 | E18: 301085.48 | F18: 0 | G18: 93446.6 | H18: 0 | I18: 0 | J18: 0 | K18: 0
A19: 20050 | D19: 0 | E19: 722139.39 | F19: 0 | G19: 96942.66 | H19: 0 | I19: 0 | J19: 0 | K19: 0
A20: 21010 | D20: 10535.28 | E20: 0 | F20: 0 | G20: 0 | H20: 0 | I20: 0 | J20: 0 | K20: 0
A21: 21020 | D21: 500 | E21: 0 | F21: 0 | G21: 0 | H21: 0 | I21: 0 | J21: 0 | K21: 0
A22: 30030 | D22: 0 | E22: 0 | F22: 0 | G22: 0 | H22: 0 | I22: 0 | J22: 0 | K22: 0
A23: 35010 | D23: 0 | E23: 0 | F23: 0 | G23: 0 | H23: 0 | I23: 0 | J23: 0 | K23: 0
A24: 35020 | D24: 0 | E24: 61687 | F24: 48159.4 | G24: 0 | H24: 0 | I24: 0 | J24: 0 | K24: 0
A25: 43040 | D25: 0 | E25: 0 | F25: 0 | G25: 0 | H25: 0 | I25: 0 | J25: 0 | K25: 0
A26: 60070 | D26: 0 | E26: 0 | F26: 0 | G26: 0 | H26: 0 | I26: 0 | J26: 0 | K26: 0
A27: 61100 | D27: 289420.5 | E27: 289420.5 | F27: 96885 | G27: 96885 | H27: 0 | I27: 0 | J27: 0 | K27: 0
A28: 70010 | D28: 0 | E28: 0 | F28: 0 | G28: 0 | H28: 0 | I28: 0 | J28: 0 | K28: 0
A29: 70020 | D29: 0 | E29: 0 | F29: 0 | G29: 0 | H29: 0 | I29: 0 | J29: 0 | K29: 0
A30: 70030 | D30: 0 | E30: 25000 | F30: 0 | G30: 0 | H30: 0 | I30: 0 | J30: 0 | K30: 0
A31: 70050 | D31: 0 | E31: 0 | F31: 0 | G31: 0 | H31: 0 | I31: 0 | J31: 0 | K31: 0
A32: 70060 | D32: 0 | E32: 0 | F32: 0 | G32: 0 | H32: 0 | I32: 0 | J32: 0 | K32: 0
A33: 70080 | D33: 0 | E33: 0 | F33: 0 | G33: 0 | H33: 0 | I33: 0 | J33: 0 | K33: 0
A34: 99010 | D34: 0 | E34: 0 | F34: 0 | G34: 0 | H34: 0 | I34: 0 | J34: 0 | K34: 0
A35: 99020 | D35: 0 | E35: 0 | F35: 0 | G35: 0 | H35: 0 | I35: 0 | J35: 0 | K35: 0
A36: 99060 | D36: 0 | E36: 0 | F36: 0 | G36: 0 | H36: 0 | I36: 0 | J36: 0 | K36: 0
A37: 99090 | D37: 2950 | E37: 0 | F37: 0 | G37: 0 | H37: 0 | I37: 0 | J37: 0 | K37: 0
